Cogmind - Beta 15 @@@ ROGUE MODE // 2025.06.02 @ 18:55:54 Player: CL-1C0 Result: Self-destructed Performance ------------- Evolutions (1) 500 Regions Visited (5) 1000 Robots Destroyed (0) 0 Value Destroyed (0) 0 Prototype IDs (23) 460 Alien Tech Used (0) 0 Bonus (500) 500 TOTAL SCORE: 2460 Bonus ------- Pacifist 200 Aligned with FarCom 300 Cogmind --------- Core Integrity 300/400 Matter 243/300 Energy 99/100 System Corruption 1% Temperature Cool (0) Movement Core (50) Location -8/Mines Parts ------- > --- POWER (1) -------- (None) > --- PROPULSION (4) --- Light Treads Light Treads Light Treads Light Treads > --- UTILITY (2) ------ Structural Scanner Terrain Scan Processor > --- WEAPON (2) ------- (None) > --- INVENTORY (5) ---- Light Treads Light Treads Light Treads Skeleton Box Rocket Launcher Peak State ------------ > --- POWER ------------ (None) > --- PROPULSION ------- Light Treads Light Treads Light Treads Light Treads > --- UTILITY ---------- Structural Scanner Terrain Scan Processor > --- WEAPON ----------- (None) > --- INVENTORY -------- Light Treads Light Treads Light Treads Skeleton Box Rocket Launcher [Rating: 8] Favorites ----------- Power None Propulsion Light Treads Treads Light Treads Hover Unit Improved Hover Unit Utility Structural Scanner Device Structural Scanner Processor Terrain Scan Processor Weapon None Build | -11 -10 -9 -9 -9 -8 ------- Run | Yrd Mat Mat Min Exi Min Slots Evolved 2 | . . 2 . . . Power . | . . . . . . Propulsion 2 | . . 2 . . . Utility . | . . . . . . Weapon . | . . . . . . Parts Attached 7 | 2 1 4 . . . Power . | . . . . . . Engine . | . . . . . . Core . | . . . . . . Reactor . | . . . . . . Propulsion 5 | 2 . 3 . . . Treads 4 | 2 . 2 . . . Leg . | . . . . . . Wheel . | . . . . . . Hover 1 | . . 1 . . . Flight . | . . . . . . Utility 2 | . 1 1 . . . Device 1 | . 1 . . . . Storage . | . . . . . . Processor 1 | . . 1 . . . Hackware . | . . . . . . Protection . | . . . . . . Artifact . | . . . . . . Weapon . | . . . . . . Energy Gun . | . . . . . . Energy Cannon . | . . . . . . Ballistic Gun . | . . . . . . Ballistic Cannon . | . . . . . . Launcher . | . . . . . . Special Weapon . | . . . . . . Impact Weapon . | . . . . . . Slashing Weapon . | . . . . . . Piercing Weapon . | . . . . . . Special Melee Weapon . | . . . . . . Unidentified Prototypes . | . . . . . . Parts Lost . | . . . . . . Power . | . . . . . . Propulsion . | . . . . . . Utility . | . . . . . . Weapon . | . . . . . . Highest Loss Streak . | . . . . . . To Critical Strikes . | . . . . . . Average Backups 3 | 4 . 2 4 4 5 Power . | 1 . . . . . Propulsion 2 | 3 . 2 3 3 3 Utility . | . . . . . . Weapon . | . . . 1 1 1 Tool/Special . | . . . . . . Unused Backups 5 | . . . . . 5 Power . | . . . . . . Propulsion 3 | . . . . . 3 Utility . | . . . . . . Weapon 1 | . . . . . 1 Tool/Special 1 | . . . . . 1 Average Slot Usage (%) 59 | . 36 58 66 66 66 Treads 39 | . 28 37 44 44 44 Device 10 | . 8 11 11 11 11 Processor 8 | . . 7 11 11 11 Peak Build Rating 8 | 2 3 7 7 8 8 Average Rating 6 | 1 2 6 7 7 8 On Entrance 5 | 6 2 3 7 7 8 Naked Turns . | . . . . . . Heaviest Build 1 | . 1 1 1 1 1 Greatest Support 80 | 3 3 20 3 3 80 Greatest Overweight (x) . | . . . . . . Average Overweight (x) . | . . . . . . Largest Inventory Capacity 5 | 5 5 5 5 5 5 Average Capacity 5 | 5 5 5 5 5 5 Most Carried 5 | 4 . 4 4 5 5 Average Carried 3 | 2 . 2 4 4 5 Final Capacity 5 | 5 5 5 5 5 5 Final Carried 5 | . . 4 4 5 5 Class Distribution -------------------- 100% | Mutant Dominant Class ---------------- Mutant | -10/Materials Mutant | -9/Materials Mutant | -9/Mines Mutant | -9/Exiles Mutant | -8/Mines Resources | -11 -10 -9 -9 -9 -8 ----------- Run | Yrd Mat Mat Min Exi Min Matter Collected 200 | 200 . . . . . Remotely . | . . . . . . Salvage Created . | . . . . . . Parts . | . . . . . . Haulers Intercepted . | . . . . . . Recyclers Shooed . | . . . . . . Parts Field Recycled . | . . . . . . Retrieved Matter . | . . . . . . Parts Self-Destructed . | . . . . . . Prevented . | . . . . . . Kills | -11 -10 -9 -9 -9 -8 ------- Run | Yrd Mat Mat Min Exi Min Combat Hostiles Destroyed . | . . . . . . Classes Destroyed . | . . . . . . Best Kill Streak . | . . . . . . Combat Bots Only . | . . . . . . Max Kills in Single Turn . | . . . . . . Gunslinging . | . . . . . . Exploded . | . . . . . . Melee . | . . . . . . Uniques/NPCs Destroyed . | . . . . . . Combat | -11 -10 -9 -9 -9 -8 -------- Run | Yrd Mat Mat Min Exi Min Hostile Shots Fired 96 | . . 96 . . . Missed 45 | . . 45 . . . Hits 51 | . . 51 . . . Projectile 51 | . . 51 . . . Critical Strikes 1 | . . 1 . . . Damage Taken 509 | . . 509 . . . Core 100 | . . 100 . . . Absorbed by Shields . | . . . . . . Core Remaining (%) 100 | 100 100 . . . . Volleys Fired . | . . . . . . Largest . | . . . . . . Hottest . | . . . . . . Shots Fired . | . . . . . . Gun . | . . . . . . Cannon . | . . . . . . Launcher . | . . . . . . Special . | . . . . . . Kinetic . | . . . . . . Thermal . | . . . . . . Explosive . | . . . . . . Electromagnetic . | . . . . . . Robot Hit Streak . | . . . . . . Robot Miss Streak . | . . . . . . Penetration Max . | . . . . . . Secondary Targets . | . . . . . . Shots Hit Robots . | . . . . . . Core Hits . | . . . . . . Critical Kills . | . . . . . . Critical Parts Destroyed . | . . . . . . Critical Strikes . | . . . . . . Melee Attacks . | . . . . . . Impact . | . . . . . . Slashing . | . . . . . . Piercing . | . . . . . . Sneak Attacks . | . . . . . . Combat Hostiles . | . . . . . . Follow-up Attacks . | . . . . . . Damage Inflicted 11 | . . 3 . . 8 Guns . | . . . . . . Cannons . | . . . . . . Explosions . | . . . . . . Melee . | . . . . . . Ramming 11 | . . 3 . . 8 Kinetic . | . . . . . . Thermal . | . . . . . . Explosive . | . . . . . . Electromagnetic . | . . . . . . Impact . | . . . . . . Slashing . | . . . . . . Piercing . | . . . . . . Highest Corruption 1 | . . 1 1 1 1 Average Corruption 1 | . . 1 1 1 1 Corruption Purged . | . . . . . . Corruption Blocked . | . . . . . . Effects 3 | . . . . 2 1 Message Errors 1 | . . . . . 1 Data Loss (minor) 2 | . . . . 2 . Overload Shots . | . . . . . . Overflow Damage . | . . . . . . Projectiles . | . . . . . . Explosions . | . . . . . . Melee . | . . . . . . Knockbacks . | . . . . . . Impact . | . . . . . . Kinetic . | . . . . . . Secondary . | . . . . . . Self-Inflicted Damage 1 | . . 1 . . . Shots . | . . . . . . Rammed 7 | . . 2 . . 5 Targets Rammed 7 | . . 2 . . 5 Kicked . | . . . . . . Crushed . | . . . . . . Highest Temperature . | . . . . . . Average Temperature . | . . . . . . Received Heat Transfer 108 | . . 108 . . . Siege Activations . | . . . . . . Martial Activations . | . . . . . . Shielding Activations . | . . . . . . Robots Disrupted . | . . . . . . Combat Hostiles . | . . . . . . Robots Corrupted . | . . . . . . Combat Hostiles . | . . . . . . Parts Fried . | . . . . . . Impact Corruptions . | . . . . . . Robots Melted . | . . . . . . Combat Hostiles . | . . . . . . Parts Melted . | . . . . . . Heat Transferred . | . . . . . . Parts Sabotaged . | . . . . . . Parts Stolen . | . . . . . . Parts Stripped . | . . . . . . Power Chain Reactions . | . . . . . . Alert | -11 -10 -9 -9 -9 -8 ------- Run | Yrd Mat Mat Min Exi Min Maximum Alert Level . | . . . . . . Low Security (%) 100 | 100 100 100 100 . 100 Level 1 . | . . . . . . Level 2 . | . . . . . . Level 3 . | . . . . . . Level 4 . | . . . . . . Level 5 . | . . . . . . High Security . | . . . . . . Max Security . | . . . . . . Peak Influence 113 | . 30 113 38 . . Initial 38 | . . 8 38 . . Average 21 | . 5 46 38 . . Influence Increases 191 | . 30 161 . . . Successful Hack 11 | . . 11 . . . Partial Spotted 45 | . . 45 . . . Lose Combat Pursuer 135 | . 30 105 . . . Influence Decreases 191 | . 10 82 61 38 . Entered New Map 111 | . . 12 61 38 . Time Decay 80 | . 10 70 . . . Squads Dispatched 2 | . . 2 . . . Investigation 2 | . . 2 . . . Extermination . | . . . . . . Reinforcement . | . . . . . . Assault . | . . . . . . Garrison . | . . . . . . Intercept . | . . . . . . Searches Triggered . | . . . . . . Construction Impeded . | . . . . . . Haulers Reinforced . | . . . . . . Active Scanning Responses . | . . . . . . Cargo Convoy Interrupts . | . . . . . . Stealth | -11 -10 -9 -9 -9 -8 --------- Run | Yrd Mat Mat Min Exi Min Distress Signals 1 | . . 1 . . . Communications Jammed . | . . . . . . Distress Signals . | . . . . . . Times Spotted 26 | . 3 23 . . . Peak Tracking Total 13 | . 2 13 . . . Tactical Retreats 3 | . 1 2 . . . Traps | -11 -10 -9 -9 -9 -8 ------- Run | Yrd Mat Mat Min Exi Min Traps Triggered 1 | . . 1 . . . Indirectly . | . . . . . . Trap Hack Attempts . | . . . . . . Triggered . | . . . . . . Disarmed . | . . . . . . Reprogrammed . | . . . . . . Reused . | . . . . . . Traps Extracted . | . . . . . . Installed . | . . . . . . Triggered . | . . . . . . Machines | -11 -10 -9 -9 -9 -8 ---------- Run | Yrd Mat Mat Min Exi Min Machines Disabled . | . . . . . . Max in Single Turn . | . . . . . . Machines Repaired . | . . . . . . Machines Dismantled . | . . . . . . Machines Sabotaged . | . . . . . . Overloaded Fab Kills . | . . . . . . Hacking | -11 -10 -9 -9 -9 -8 --------- Run | Yrd Mat Mat Min Exi Min Machines Accessed 4 | . . 3 . 1 . Terminals 3 | . . 3 . . . Fabricators . | . . . . . . Repair Stations . | . . . . . . Recycling Units . | . . . . . . Scanalyzers . | . . . . . . Garrison Access . | . . . . . . Total Hacks 11 | . . 10 . 1 . Successful 3 | . . 2 . 1 . Failed 8 | . . 8 . . . Catastrophic 2 | . . 2 . . . Database Lockouts . | . . . . . . Manual 6 | . . 5 . 1 . Terminals 10 | . . 10 . . . Fabricators . | . . . . . . Repair Stations . | . . . . . . Recycling Units . | . . . . . . Scanalyzers . | . . . . . . Garrison Access . | . . . . . . Terminal Hacks 3 | . . 2 . 1 . Zone Layout 2 | . . 2 . . . Proto ID Catalog 1 | . . . . 1 . Fabricator Hacks . | . . . . . . Repair Station Hacks . | . . . . . . Recycling Unit Hacks . | . . . . . . Scanalyzer . | . . . . . . Garrison Access Hacks . | . . . . . . Unauthorized Hacks . | . . . . . . Terminals . | . . . . . . Fabricators . | . . . . . . Repair Stations . | . . . . . . Recycling Units . | . . . . . . Scanalyzers . | . . . . . . Garrison Access . | . . . . . . Data Cores Recovered . | . . . . . . Used . | . . . . . . Hacking Detections 3 | . . 3 . . . Full Trace Events 2 | . . 2 . . . Feedback Events . | . . . . . . Feedback Blocked . | . . . . . . Robot Schematics Acquired . | . . . . . . Robots Built . | . . . . . . Authchips . | . . . . . . Time . | . . . . . . Total Robot Build Rating . | . . . . . . Part Schematics Acquired . | . . . . . . Parts Built . | . . . . . . Authchips . | . . . . . . Time . | . . . . . . Total Part Build Rating . | . . . . . . Parts Repaired . | . . . . . . Time . | . . . . . . Parts Recycled . | . . . . . . Recycled Matter . | . . . . . . Retrieved Matter . | . . . . . . Retrieved Components . | . . . . . . Parts Scanalyzed . | . . . . . . Part Schematics Acquired . | . . . . . . Parts Damaged . | . . . . . . Bothacking | -11 -10 -9 -9 -9 -8 ------------ Run | Yrd Mat Mat Min Exi Min Used RIF Installer . | . . . . . . Robots Hacked . | . . . . . . Non-combat . | . . . . . . Combat . | . . . . . . Robot Hacks Applied . | . . . . . . Relay Couplers Released . | . . . . . . Fabnet Peak Effective % . | . . . . . . Robots Rewired . | . . . . . . Allies Hacked . | . . . . . . Hacks Repelled . | . . . . . . Allies | -11 -10 -9 -9 -9 -8 -------- Run | Yrd Mat Mat Min Exi Min Total Allies . | . . . . . . Largest Group . | . . . . . . Highest-Rated Group . | . . . . . . Highest-Rated Ally . | . . . . . . Total Orders . | . . . . . . Ally Attacks . | . . . . . . Total Damage . | . . . . . . Kills . | . . . . . . Allies Corrupted . | . . . . . . Allies Melted . | . . . . . . Intel | -11 -10 -9 -9 -9 -8 ------- Run | Yrd Mat Mat Min Exi Min Active Infowar (turns) 450 | . 49 154 15 104 128 Structural 450 | . 49 154 15 104 128 Robot Analysis Total . | . . . . . . Derelict Logs Recovered . | . . . . . . Drone Launches . | . . . . . . Drone Recoveries . | . . . . . . Exploration | -11 -10 -9 -9 -9 -8 ------------- Run | Yrd Mat Mat Min Exi Min Turns Passed 469 | 4 64 154 15 104 128 Spaces Moved 861 | 1 125 274 30 206 225 Core 855 | 1 125 272 30 206 221 Treads 5 | . . 1 . . 4 Legs . | . . . . . . Wheels . | . . . . . . Hover 1 | . . 1 . . . Flight . | . . . . . . Fastest Speed 50 | 50 50 50 50 50 50 Average Speed 50 | 50 50 50 50 50 51 Slowest Speed 160 | 50 50 160 50 50 160 Overloaded Moves . | . . . . . . Propulsion Burnouts . | . . . . . . Robots Hopped . | . . . . . . Potential Cave-ins . | . . . . . . Cave-ins Triggered . | . . . . . . Exploration Rate (%) 33 | 1 36 37 10 60 57 Regions Visited 5 Branch Regions 3 Pre-discovered Areas . | . . . . . . Known Exits Taken . | . . . . . . Unknown Exits Taken 5 | 1 1 1 1 1 . Scrap Searched . | . . . . . . Spaces Dug . | . . . . . . Terrain Destroyed . | . . . . . . Melee . | . . . . . . Projectile . | . . . . . . AOE . | . . . . . . Terrain Rammed . | . . . . . . Walls Destroyed . | . . . . . . Machines Disabled . | . . . . . . Actions | -11 -10 -9 -9 -9 -8 --------- Run | Yrd Mat Mat Min Exi Min Total 884 | 5 125 286 29 206 233 Wait 3 | . . . . . 3 Move 856 | . 124 273 29 205 225 Hop . | . . . . . . Pick Up 5 | . . 4 . 1 . Fast Attach 6 | . 1 5 . . . Attach 2 | 2 . . . . . Detach . | . . . . . . Swap . | . . . . . . Drop 5 | 3 . 2 . . . Fire . | . . . . . . Melee . | . . . . . . Ram 1 | . . 1 . . . Kick . | . . . . . . Crush 6 | . . 1 . . 5 Escape Stasis . | . . . . . . Rewire . | . . . . . . Trap . | . . . . . . Miscellaneous . | . . . . . . Route ------- -11/Scrapyard -10/Materials (discovered 3 exits: *Mat x2 / [*Min]) -9/Materials (discovered 2 exits: [Mat] / [*Min]) -9/Mines -9/Exiles -8/Mines History --------- Turn | Location | Event 1 | -11/Scrapyard | Released all parts (6) 5 | -11/Scrapyard | Discovered new exit (range 0) 5 | -11/Scrapyard | Entered Materials 45 | -10/Materials | Discovered new exit (range 15) 47 | -10/Materials | Discovered new exit (range 16) 65 | -10/Materials | Discovered new exit (range 9) 69 | -10/Materials | Entered another Materials area 69 | -9/Materials | Evolved 2 slots: Propulsion x2 202 | -9/Materials | Discovered new exit (range 21) 218 | -9/Materials | Discovered new exit (range 11) 223 | -9/Materials | Entered Mines 236 | -9/Mines | Deemed a non-threat by the Exiles lab entrance 236 | -9/Mines | Discovered new exit (range 5) 238 | -9/Mines | Entered Exiles 251 | -9/Exiles | Met 8R-AWN 259 | -9/Exiles | Met EX-HEX 274 | -9/Exiles | Met EX-BIN 279 | -9/Exiles | Aligned with FarCom system 280 | -9/Exiles | Given EX-Vault access code 291 | -9/Exiles | Opened EX-Vault 295 | -9/Exiles | Found Skeleton Box 306 | -9/Exiles | Warned to stay clear of 0b10 Research branches 310 | -9/Exiles | Build established: Mutant 321 | -9/Exiles | Met EX-DEC 338 | -9/Exiles | Discovered new exit (range 10) 342 | -9/Exiles | Left Exiles lab with Skeleton Box 342 | -9/Exiles | Entered Mines 470 | -8/Mines | Self-destructed Last Messages --------------- branches, since the FarCom signals could be picked up there, but you're welcome to try if you really want to. And if we have to leave here due to unforeseen circumstances, don't worry the FarCom system will continue to maintain contact via our distributed network. EX-DEC: Ah I see we have a visitor. One wrong move in here and I'll invert your atomic chain! 00338_ System corrupted: Component data lost. 00338_ EXIT=FOUND LOCATION=UNKNOWN GOAL=ESCAPE 00342_ Receiving FarCom transmissions... 00343_ K-01 Serf collects debris. 00343_ K-01 Serf cleans the Core Extractor. 00345_ Slammed into K-01 Serf. 00395_ Slammed into T-07 Excavator. 00425_ K-01 Serf collects debris. 00451_ Slammed into R-06 Scavenger. 00452_ K-01 Serf collects debris. 00466_ WPZQOQ4LBHJAJQC Map ----- +----------------------------------------------------+ | ????????????????????????????## ##???## | | ????????????????????????????## ##???## | | ????????????????????????????### ##???## | | ???????????????????????????#### ###???### ### | | ???????????????????????????### ###????######### | | ??????????????????????????### ####?????####???# | | ?????????????????????????#### ################# | | ????????????????????????#### ################ | | ??????????????????????##### ### | | ??????????????????????#### #### ############ | | ?????????????????????### #### ############ | | ?????????????????????## # ########??## | | ?????????????????????## # ###### ###???# | | ?????????????????????### # ##### ##???# | | ?????????????????????### ## #### ##???# | | ?????????????????????## ### ### ###??# | | ?????????????????????## ### ###??# | | ????????????######???## #### #### ##??# | | ???????????#######???### ##### ###### ##??# | | ???????????### ##???### ### ####### ###??# | | ??????????### ###???####?## #####??#### ####??# | | ?????????#### ##########?## #####???### ###???# | | ?????????### ############ ##???????## ####### | | ????????### ######## ###??????## ####### | | ???????### ## #### ########### | | ???????## ###### @ u########## ####### | | ???????## ######## #### ####### | | ???????## ###??#### #### ###????? | | ???????### #?????####### # #### #### ###???## | | ???????#### ##??????########## #### #### ####?### | | ????????######????????######## ##?? #### ####### | | ?????????####?????????## ##?????## ##### | | ??????????????????????## ### ####?????## #### | | ??????################## ### ####?????### ## | | ??????################## ### ####????? #### | | ???? s #### ### ####??????##### | | ???? s ### ##????????#### | | ????????" """ """ ########## ##?????????#### | | ????????????" """ ########## ##??????????#### | | ????????????" """ ##??????## ##???????????###### | | ???????????? ##??????## ##????????????##### | | ????????????" """ ##??????## ##????????????????? | | ???????????"" """ ##??????## ##????????????????? | | ???????????"" """ ##??????## ##????????????????? | | ????????????? ##??????## ##????????????????? | | ??????????????########????#### #########?????????? | | ??????????????#######?????#### #########?????????? | | ??????????????????????????## ##?????????? | | ??????????????????????????## """ ##?????????? | | ??????????????????????????## """ ##?????????? | +----------------------------------------------------+ Best States ------------- Heat Dissipation 28 Energy Generation 5 Energy Capacity 100 Matter Stores 280 Matter Capacity 300 Sight Range 16 Terrain Scan Density 85 Evasion (%) 50 Recoil Reduction 4 Item Schematics ----------------- None Robot Schematics ------------------ None Fabricated ------------ Nothing Repaired ---------- Nothing Alien Tech Used ----------------- None Achievements -------------- None Challenges ------------ None Game ------ Seed CombatLatentWarhead Manual? 0 Play Time 00:07:45 Cumulative 515.4 hours Start 2025.06.02 @ 16:43:58 End 2025.06.02 @ 18:55:54 Sessions 4 Manual Loads 0 Difficulty Rogue Special Mode None Game No. 562 Rogue 562 Adventurer 0 Explorer 0 Win Type - Total 15 Types 9/0/5/1/0/0/0/0/0/0 Lore% 82 Gallery% 81 Achievement% 82 Wizard Run 0 Options --------- Layout 0 ASCII 0 Keyboard 0 Movement Numpad Keybinds 0 Fullscreen 1 Font 18/SmallcapsGlow Map View 76x50 Zoom Use 0% Tactical HUD 1 Map Filters NONE Filters NONE Steam 1 RUN: b9feb94a-fb83-48b3-bb2f-7ba088b81fdb